[Event "RUS-ch Women Blitz 2019"]
[Site "Sochi"]
[Date "2019.10.17"]
[Round "3.2"]
[White "Maltsevskaya, Aleksandra"]
[Black "Gritsayeva, Oksana"]
[Result "0-1"]
[ECO "B00"]
[WhiteElo "2333"]
[BlackElo "2370"]
[Annotator "NA"]
[PlyCount "138"]
[EventDate "2019.10.17"]
[EventType "swiss"]
[EventCountry "RUS"]
[SourceTitle "playchess.com"]
[Source "ChessBase"]
[SourceQuality "1"]
[TimeControl "180+2"]

1. e4 {[%emt 0:00:00]} d6 {[%emt 0:00:00]} 2. d4 {[%emt 0:00:02]} Nf6 {[%emt 0:00:00]} 3. Bd3 {[%emt 0:00:01]} e5 {[%emt 0:00:01]} 4. c3 {[%emt 0:00:02]} Nc6 {[%emt 0:00:02]} 5. Nf3 {[%emt 0:00:02]} Be7 {[%emt 0:00:13]} 6. O-O {[%emt 0:00:02]} O-O {[%emt 0:00:03]} 7. h3 {[%emt 0:00:01]} Re8 {[%emt 0:00:09]} 8. Re1 {[%emt 0:00:05]} Bf8 {[%emt 0:00:04]} 9. dxe5 {[%emt 0:00:10]} dxe5 {[%emt 0:00:07]} 10. Qe2 {[%emt 0:00:02]} h6 {[%emt 0:00:18]} 11. Nbd2 {[%emt 0:00:02]} Qe7 {[%emt 0:00:09]} 12. Nc4 {[%emt 0:00:03]} g6 {[%emt 0:00:05]} 13. b3 {[%emt 0:00:02]} Bg7 {[%emt 0:00:06]} 14. Ba3 {[%emt 0:00:11]} Qe6 {[%emt 0:00:02]} 15. Rad1 {[%emt 0:00:01]} Nh5 {[%emt 0:00:02]} 16. Ne3 {[%emt 0:00:17]} Nf4 {[%emt 0:00:03]} 17. Qf1 {[%emt 0:00:01]} Ne7 {[%emt 0:00:15]} 18. Bb5 {[%emt 0:00:24]} Rf8 {[%emt 0:00:25]} 19. Nd5 {[%emt 0:00:21]} Nexd5 {[%emt 0:00:27]} 20. exd5 {[%emt 0:00:02]} Qb6 {[%emt 0:00:06]} 21. Bxf8 {[%emt 0:00:08]} Kxf8 {[%emt 0:00:04]} 22. Nxe5 {[%emt 0:00:08]} Bf5 {[%emt 0:00:10]} 23. Qc4 {[%emt 0:00:49]} g5 {[%emt 0:00:08]} 24. d6 {[%emt 0:00:15]} Be6 {[%emt 0:00:01]} 25. dxc7 {[%emt 0:00:10]} Bxe5 {[%emt 0:00:22]} 26. Qb4+ {[%emt 0:00:16]} Kg7 {[%emt 0:00:05]} 27. Rxe5 {[%emt 0:00:01]} Qxc7 {[%emt 0:00:04]} 28. Qd4 {[%emt 0:00:01]} Kg8 {[%emt 0:00:05]} 29. Bf1 {[%emt 0:00:01]} Rc8 {[%emt 0:00:02]} 30. c4 {[%emt 0:00:02]} b6 {[%emt 0:00:02]} 31. Re3 {[%emt 0:00:03]} Qc6 {[%emt 0:00:05]} 32. h4 {[%emt 0:00:03]} Kh7 {[%emt 0:00:12]} 33. hxg5 {[%emt 0:00:02]} hxg5 {[%emt 0:00:01]} 34. Qe4+ {[%emt 0:00:08]} Qxe4 {[%emt 0:00:02]} 35. Rxe4 {[%emt 0:00:01]} Kg7 {[%emt 0:00:01]} 36. g3 {[%emt 0:00:06]} Ng6 {[%emt 0:00:01]} 37. Bg2 {[%emt 0:00:02]} Rc5 {[%emt 0:00:02]} 38. Red4 {[%emt 0:00:01]} Ra5 {[%emt 0:00:01]} 39. R1d2 {[%emt 0:00:01]} Ne7 {[%emt 0:00:02]} 40. Re4 {[%emt 0:00:04]} Nc6 {[%emt 0:00:04]} 41. f4 {[%emt 0:00:01]} gxf4 {[%emt 0:00:02]} 42. gxf4 {[%emt 0:00:00]} Ne7 {[%emt 0:00:01]} 43. Re5 {[%emt 0:00:02]} Ra3 {[%emt 0:00:03]} 44. Be4 {[%emt 0:00:03]} Kf6 {[%emt 0:00:03]} 45. Rh2 {[%emt 0:00:01]} Ng6 {[%emt 0:00:05]} 46. Bxg6 {[%emt 0:00:03]} fxg6 {[%emt 0:00:01]} 47. Rd2 {[%emt 0:00:01]} Bf5 {[%emt 0:00:03]} 48. Kf2 {[%emt 0:00:01]} Kf7 {[%emt 0:00:04]} 49. Kg3 {[%emt 0:00:02]} Kf6 {[%emt 0:00:01]} 50. Rd6+ {[%emt 0:00:04]} Kf7 {[%emt 0:00:01]} 51. Re2 {[%emt 0:00:01]} Kf8 {[%emt 0:00:03]} 52. Kh4 {[%emt 0:00:02]} Kf7 {[%emt 0:00:02]} 53. Kg5 {[%emt 0:00:01]} Ra5 {[%emt 0:00:02]} 54. Rf6+ {[%emt 0:00:04]} Kg7 {[%emt 0:00:03]} 55. Re7+ {[%emt 0:00:01]} Kg8 {[%emt 0:00:01]} 56. Re5 {[%emt 0:00:02]} Rxa2 {[%emt 0:00:03]} 57. Rd6 {[%emt 0:00:01]} Kf7 {[%emt 0:00:01]} 58. Rxf5+ {[%emt 0:00:08]} gxf5 {[%emt 0:00:02]} 59. Kxf5 {[%emt 0:00:01]} Ke7 {[%emt 0:00:01]} 60. Rh6 {[%emt 0:00:02]} Ra3 {[%emt 0:00:01]} 61. Rh7+ {[%emt 0:00:01]} Kd6 {[%emt 0:00:01]} 62. b4 {[%emt 0:00:02]} a5 {[%emt 0:00:01]} 63. Rh6+ {[%emt 0:00:03]} Kc7 {[%emt 0:00:01]} 64. bxa5 {[%emt 0:00:01]} Rxa5+ {[%emt 0:00:02]} 65. Ke6 {[%emt 0:00:01]} Rc5 {[%emt 0:00:02]} 66. f5 {[%emt 0:00:01]} Rc6+ {[%emt 0:00:01]} 67. Ke5 {[%emt 0:00:03]} Rxh6 {[%emt 0:00:01]} 68. f6 {[%emt 0:00:01]} Rh8 {[%emt 0:00:02]} 69. Ke6 {[%emt 0:00:01]} Kc6 {[%emt 0:00:00]} 0-1

[Event "RUS-ch Women Blitz 2019"]
[Site "Sochi"]
[Date "2019.10.17"]
[Round "3.3"]
[White "Semenova, Elena"]
[Black "Guseva, Marina"]
[Result "1-0"]
[ECO "B53"]
[WhiteElo "2282"]
[BlackElo "2366"]
[Annotator "NA RC"]
[PlyCount "91"]
[EventDate "2019.10.17"]
[EventType "swiss"]
[EventCountry "RUS"]
[SourceTitle "playchess.com"]
[Source "ChessBase"]
[SourceQuality "1"]
[TimeControl "180+2"]

1. e4 {[%emt 0:00:00]} c5 {[%emt 0:00:00]} 2. Nf3 {[%emt 0:00:00]} d6 {[%emt 0:00:00]} 3. d4 {[%emt 0:00:01]} cxd4 4. Qxd4 {[%emt 0:00:01]} Nc6 {[%emt 0:00:01]} 5. Bb5 {[%emt 0:00:02]} Bd7 {[%emt 0:00:01]} 6. Qd3 Nf6 {[%emt 0:00:03]} 7. Bg5 {[%emt 0:00:06] B53: Sicilian: 2...d6: Lines with Qxd4} (7. O-O g6 8. c4 Bg7 9. Nc3 O-O 10. h3 Rc8 11. Rd1 a6 12. Bxc6 Bxc6 13. Nd4 Nd7 14. Be3 Nc5 {½-½ (41) Andreikin,D (2725)-Andriasian,Z (2604) chess.com INT 2019}) 7... a6 {[%emt 0:00:09]} 8. Bxc6 $146 {[%emt 0:00:05]} ({Predecessor:} 8. Ba4 g6 9. Nbd2 Bg7 10. c3 O-O 11. O-O b5 12. Bb3 Rc8 13. c4 bxc4 14. Nxc4 Nb4 {1-0 (41) Mori,R-Petidis,K LSS email 2007}) 8... Bxc6 {[%emt 0:00:01]} 9. Bxf6 {[%emt 0:00:07]} gxf6 {[%emt 0:00:02]} 10. c4 {[%emt 0:00:08]} Bg7 {[%emt 0:00:06]} 11. Nc3 {[%emt 0:00:02]} Rc8 {[%emt 0:00:05]} 12. O-O {[%emt 0:00:08]} Rg8 {[%emt 0:00:04]} 13. Nd4 {[%emt 0:00:04]} e6 {[%emt 0:00:13]} 14. Rad1 {[%emt 0:00:02]} f5 {[%emt 0:00:25]} 15. Nxc6 {[%emt 0:00:07]} Rxc6 {[%emt 0:00:01]} 16. exf5 {[%emt 0:00:09]} Bxc3 {[%emt 0:00:06]} 17. Qxc3 {[%emt 0:00:11]} Qg5 {[%emt 0:00:16]} 18. Qg3 {[%emt 0:00:14]} Rxc4 {[%emt 0:00:02]} 19. Qxg5 {[%emt 0:00:07]} Rxg5 {[%emt 0:00:02]} 20. fxe6 {[%emt 0:00:01]} fxe6 {[%emt 0:00:01]} 21. Rxd6 {[%emt 0:00:01]} Ke7 {[%emt 0:00:02]} 22. Rb6 {[%emt 0:00:01]} Rb5 {[%emt 0:00:25]} 23. Rxb5 {[%emt 0:00:02]} axb5 {[%emt 0:00:01]} 24. g3 {[%emt 0:00:16]} Rc2 $16 {[%emt 0:00:02]} 25. Rb1 {[%emt 0:00:08]} b4 {[%emt 0:00:01]} 26. Kg2 {[%emt 0:00:03]} Kf6 {[%emt 0:00:01]} 27. Kf3 {[%emt 0:00:01]} Kf5 {[%emt 0:00:04]} 28. h3 {[%emt 0:00:06]} h5 {[%emt 0:00:01]} 29. Ke3 {[%emt 0:00:02]} b5 {[%emt 0:00:22]} 30. Kf3 {[%emt 0:00:03]} Rd2 {[%emt 0:00:04]} 31. Ke3 {[%emt 0:00:05]} Rc2 {[%emt 0:00:01]} 32. Kf3 {[%emt 0:00:24]} Rd2 {[%emt 0:00:01]} 33. g4+ {[%emt 0:00:17]} hxg4+ {[%emt 0:00:02]} 34. hxg4+ {[%emt 0:00:01]} Kg5 {[%emt 0:00:06]} 35. Re1 {[%emt 0:00:21]} Kf6 {[%emt 0:01:01]} 36. Re2 {[%emt 0:00:01]} Rd3+ {[%emt 0:00:03]} 37. Ke4 {[%emt 0:00:05]} Rd1 {[%emt 0:00:06]} 38. f4 {[%emt 0:00:08]} Ra1 {[%emt 0:00:05]} 39. b3 {[%emt 0:00:02]} Rd1 {[%emt 0:00:06]} 40. g5+ {[%emt 0:00:04]} Kf7 {[%emt 0:00:02]} 41. Rc2 {[%emt 0:00:05]} Rd5 {[%emt 0:00:04]} 42. Rc7+ {[%emt 0:00:03]} Kf8 {[%emt 0:00:06]} 43. Rc6 {[%emt 0:00:02]} Kf7 {[%emt 0:00:02]} 44. Rc7+ {[%emt 0:00:02]} Kf8 {[%emt 0:00:02]} 45. Rb7 {[%emt 0:00:02]} Rc5 {[%emt 0:00:02]} 46. g6 {[%emt 0:00:02]} 1-0

[Event "RUS-ch Women Blitz 2019"]
[Site "Sochi"]
[Date "2019.10.20"]
[Round "3.4"]
[White "Trapeznikova, Darya"]
[Black "Styazhkina, Anna"]
[Result "0-1"]
[ECO "A06"]
[WhiteElo "2065"]
[BlackElo "2280"]
[Annotator "NA"]
[PlyCount "150"]
[EventDate "2019.10.17"]
[EventType "swiss"]
[EventCountry "RUS"]
[SourceTitle "playchess.com"]
[Source "ChessBase"]
[SourceQuality "1"]
[TimeControl "180+2"]

1. Nf3 {[%emt 0:00:00]} d5 {[%emt 0:00:00]} 2. e3 {[%emt 0:00:01]} Nf6 {[%emt 0:00:05]} 3. c4 {[%emt 0:00:01]} c6 {[%emt 0:00:01]} 4. Nc3 {[%emt 0:00:03]} a6 {[%emt 0:00:04]} 5. a4 {[%emt 0:00:15]} Bg4 {[%emt 0:00:22]} 6. Qb3 {[%emt 0:00:15]} Ra7 {[%emt 0:00:02]} 7. Ne5 {[%emt 0:00:07]} Bf5 {[%emt 0:00:01]} 8. d4 {[%emt 0:00:04]} e6 {[%emt 0:00:06]} 9. Be2 {[%emt 0:00:06]} Nbd7 {[%emt 0:00:06]} 10. f4 {[%emt 0:00:13]} Be7 {[%emt 0:00:15]} 11. O-O {[%emt 0:00:02]} h5 {[%emt 0:00:09]} 12. a5 {[%emt 0:00:18]} Ng4 {[%emt 0:00:33]} 13. Nxd7 {[%emt 0:00:12]} Qxd7 {[%emt 0:00:04]} 14. Bd2 {[%emt 0:00:41]} h4 {[%emt 0:00:31]} 15. h3 {[%emt 0:00:02]} Nf6 {[%emt 0:00:02]} 16. cxd5 {[%emt 0:00:12]} exd5 {[%emt 0:00:07]} 17. Bf3 {[%emt 0:00:18]} O-O {[%emt 0:00:19]} 18. Be1 {[%emt 0:00:25]} Ne8 {[%emt 0:00:08]} 19. Bf2 {[%emt 0:00:01]} Nd6 {[%emt 0:00:06]} 20. Qd1 {[%emt 0:00:06]} Bf6 {[%emt 0:00:06]} 21. b3 {[%emt 0:00:09]} Raa8 {[%emt 0:00:04]} 22. Qd2 {[%emt 0:00:01]} Rfe8 {[%emt 0:00:09]} 23. Na4 {[%emt 0:00:05]} Rad8 {[%emt 0:00:06]} 24. Nc5 {[%emt 0:00:01]} Qc7 {[%emt 0:00:04]} 25. Qe1 {[%emt 0:00:04]} Bxd4 {[%emt 0:00:06]} 26. Qc1 {[%emt 0:00:02]} Bf6 {[%emt 0:00:05]} 27. Qd2 {[%emt 0:00:04]} Nb5 {[%emt 0:00:06]} 28. Rac1 {[%emt 0:00:02]} Qe7 {[%emt 0:00:05]} 29. Na4 {[%emt 0:00:04]} Nd6 {[%emt 0:00:02]} 30. Nb6 {[%emt 0:00:01]} Ne4 {[%emt 0:00:01]} 31. Bxe4 {[%emt 0:00:01]} Bxe4 {[%emt 0:00:02]} 32. Qe2 Qe6 {[%emt 0:00:01]} 33. Na4 {[%emt 0:00:06]} Qe7 {[%emt 0:00:02]} 34. Nb6 {[%emt 0:00:01]} Qc7 {[%emt 0:00:02]} 35. Rfd1 {[%emt 0:00:02]} Bf5 {[%emt 0:00:02]} 36. Qf3 {[%emt 0:00:01]} Be4 {[%emt 0:00:01]} 37. Qe2 {[%emt 0:00:01]} Qe7 {[%emt 0:00:03]} 38. Re1 {[%emt 0:00:02]} Qb4 {[%emt 0:00:01]} 39. Qa2 {[%emt 0:00:02]} Bf5 {[%emt 0:00:03]} 40. Red1 {[%emt 0:00:05]} Qe4 {[%emt 0:00:03]} 41. Re1 {[%emt 0:00:02]} d4 {[%emt 0:00:02]} 42. exd4 {[%emt 0:00:02]} Qxf4 {[%emt 0:00:01]} 43. Rxe8+ {[%emt 0:00:03]} Rxe8 {[%emt 0:00:01]} 44. Rf1 {[%emt 0:00:01]} Bxd4 {[%emt 0:00:02]} 45. Bxd4 {[%emt 0:00:02]} Qxd4+ {[%emt 0:00:01]} 46. Kh1 {[%emt 0:00:03]} Be4 {[%emt 0:00:02]} 47. Qe2 {[%emt 0:00:02]} Qe5 {[%emt 0:00:03]} 48. Qf2 {[%emt 0:00:02]} Qe6 {[%emt 0:00:04]} 49. Kh2 {[%emt 0:00:01]} g5 {[%emt 0:00:02]} 50. Nc4 {[%emt 0:00:01]} Kg7 {[%emt 0:00:02]} 51. Ne3 {[%emt 0:00:01]} Bg6 {[%emt 0:00:01]} 52. Ng4 {[%emt 0:00:01]} f5 {[%emt 0:00:01]} 53. Qb2+ {[%emt 0:00:02]} Kf7 {[%emt 0:00:03]} 54. Nf2 {[%emt 0:00:02]} Qe5+ {[%emt 0:00:02]} 55. Qxe5 {[%emt 0:00:02]} Rxe5 {[%emt 0:00:01]} 56. Nd3 {[%emt 0:00:00]} Rxa5 {[%emt 0:00:01]} 57. Re1 {[%emt 0:00:02]} Rd5 {[%emt 0:00:03]} 58. Ne5+ {[%emt 0:00:01]} Kf6 {[%emt 0:00:01]} 59. Nf3 {[%emt 0:00:02]} Bh5 {[%emt 0:00:02]} 60. Ng1 {[%emt 0:00:03]} Rd3 {[%emt 0:00:03]} 61. b4 {[%emt 0:00:02]} Rb3 {[%emt 0:00:01]} 62. Rc1 {[%emt 0:00:06]} Rxb4 {[%emt 0:00:01]} 63. Re1 {[%emt 0:00:04]} a5 {[%emt 0:00:02]} 64. Ra1 {[%emt 0:00:00]} a4 {[%emt 0:00:01]} 65. Ra3 {[%emt 0:00:04]} b5 {[%emt 0:00:01]} 66. Rc3 {[%emt 0:00:01]} Rc4 {[%emt 0:00:01]} 67. Ra3 {[%emt 0:00:01]} Rc2 {[%emt 0:00:03]} 68. Rd3 {[%emt 0:00:03]} c5 {[%emt 0:00:02]} 69. Rd6+ {[%emt 0:00:02]} Ke5 {[%emt 0:00:02]} 70. Rh6 {[%emt 0:00:02]} Bd1 {[%emt 0:00:03]} 71. Rh8 {[%emt 0:00:01]} a3 {[%emt 0:00:02]} 72. Re8+ {[%emt 0:00:02]} Kf6 {[%emt 0:00:01]} 73. Rf8+ {[%emt 0:00:01]} Kg6 {[%emt 0:00:01]} 74. Rg8+ {[%emt 0:00:01]} Kf7 {[%emt 0:00:04]} 75. Rxg5 {[%emt 0:00:02]} a2 {[%emt 0:00:01]} 0-1

[Event "RUS-ch Women Blitz 2019"]
[Site "Sochi"]
[Date "2019.10.17"]
[Round "3.5"]
[White "Dumcheva, Julia"]
[Black "Lysenko, Margarita"]
[Result "0-1"]
[ECO "B21"]
[WhiteElo "2168"]
[BlackElo "2243"]
[Annotator "NA"]
[PlyCount "142"]
[EventDate "2019.10.17"]
[EventType "swiss"]
[EventCountry "RUS"]
[SourceTitle "playchess.com"]
[Source "ChessBase"]
[SourceQuality "1"]
[TimeControl "180+2"]

1. e4 {[%emt 0:00:14]} c5 {[%emt 0:00:00]} 2. f4 {[%emt 0:00:02]} g6 {[%emt 0:00:15]} 3. Nf3 {[%emt 0:00:02]} Bg7 {[%emt 0:00:01]} 4. g3 {[%emt 0:00:04]} Nc6 {[%emt 0:00:02]} 5. Bg2 {[%emt 0:00:03]} e6 {[%emt 0:00:02]} 6. d3 {[%emt 0:00:04]} Nge7 {[%emt 0:00:02]} 7. O-O {[%emt 0:00:03]} d6 {[%emt 0:00:09]} 8. Nc3 {[%emt 0:00:13]} O-O {[%emt 0:00:02]} 9. Ne2 {[%emt 0:00:05]} f5 {[%emt 0:00:35]} 10. c3 {[%emt 0:00:08]} Rb8 {[%emt 0:00:25]} 11. Be3 {[%emt 0:00:04]} b5 {[%emt 0:00:04]} 12. e5 {[%emt 0:00:12]} dxe5 {[%emt 0:00:12]} 13. fxe5 {[%emt 0:00:05]} c4 {[%emt 0:00:27]} 14. d4 {[%emt 0:00:05]} Nd5 {[%emt 0:00:04]} 15. Bg5 {[%emt 0:00:04]} Qb6 {[%emt 0:00:22]} 16. Kh1 {[%emt 0:00:11]} b4 {[%emt 0:00:02]} 17. Nd2 {[%emt 0:00:19]} h6 {[%emt 0:00:12]} 18. Bxd5 {[%emt 0:00:05]} exd5 {[%emt 0:00:02]} 19. Be3 {[%emt 0:00:01]} Ne7 {[%emt 0:00:16]} 20. Qe1 {[%emt 0:00:12]} Kh7 {[%emt 0:00:04]} 21. Nf4 {[%emt 0:00:08]} Bd7 {[%emt 0:00:12]} 22. Qe2 {[%emt 0:00:16]} bxc3 {[%emt 0:00:04]} 23. bxc3 {[%emt 0:00:02]} Qb2 {[%emt 0:00:01]} 24. Rfc1 {[%emt 0:00:05]} Qa3 {[%emt 0:00:08]} 25. Qg2 {[%emt 0:00:03]} Qa5 {[%emt 0:00:02]} 26. h4 {[%emt 0:00:09]} Rb2 {[%emt 0:00:03]} 27. a3 {[%emt 0:00:05]} Rfb8 {[%emt 0:00:01]} 28. e6 {[%emt 0:00:19]} Bc8 {[%emt 0:00:03]} 29. Qh3 {[%emt 0:00:06]} Qb6 {[%emt 0:00:01]} 30. h5 {[%emt 0:00:03]} Bxe6 {[%emt 0:00:02]} 31. hxg6+ {[%emt 0:00:02]} Nxg6 {[%emt 0:00:00]} 32. Nxg6 {[%emt 0:00:07]} Kxg6 {[%emt 0:00:01]} 33. Bf4 {[%emt 0:00:07]} Re8 {[%emt 0:00:03]} 34. Nf3 {[%emt 0:00:02]} Bf7 {[%emt 0:00:05]} 35. Ne5+ {[%emt 0:00:03]} Rxe5 {[%emt 0:00:03]} 36. dxe5 {[%emt 0:00:04]} Qf2 {[%emt 0:00:02]} 37. Rf1 {[%emt 0:00:02]} Qe2 {[%emt 0:00:01]} 38. Rae1 {[%emt 0:00:05]} Qc2 {[%emt 0:00:01]} 39. e6 {[%emt 0:00:02]} Be8 {[%emt 0:00:01]} 40. Rg1 {[%emt 0:00:05]} d4 {[%emt 0:00:01]} 41. Rg2 {[%emt 0:00:02]} Bc6 {[%emt 0:00:01]} 42. Reg1 {[%emt 0:00:02]} Bxg2+ {[%emt 0:00:01]} 43. Rxg2 {[%emt 0:00:02]} Rb1+ {[%emt 0:00:01]} 44. Kh2 {[%emt 0:00:01]} Qd1 {[%emt 0:00:00]} 45. g4 {[%emt 0:00:05]} Qh1+ {[%emt 0:00:02]} 46. Kg3 {[%emt 0:00:01]} Qxh3+ {[%emt 0:00:01]} 47. Kxh3 {[%emt 0:00:02]} fxg4+ {[%emt 0:00:05]} 48. Rxg4+ {[%emt 0:00:01]} Kh7 {[%emt 0:00:01]} 49. e7 {[%emt 0:00:03]} Re1 {[%emt 0:00:01]} 50. cxd4 {[%emt 0:00:02]} Rxe7 {[%emt 0:00:04]} 51. d5 {[%emt 0:00:03]} c3 {[%emt 0:00:02]} 52. d6 {[%emt 0:00:01]} Re1 {[%emt 0:00:06]} 53. Rg2 {[%emt 0:00:03]} Rd1 {[%emt 0:00:02]} 54. Rc2 {[%emt 0:00:02]} Kg6 {[%emt 0:00:01]} 55. Kg4 {[%emt 0:00:01]} h5+ {[%emt 0:00:01]} 56. Kf3 {[%emt 0:00:01]} Kf5 {[%emt 0:00:02]} 57. Bg3 {[%emt 0:00:03]} Bf6 {[%emt 0:00:04]} 58. Ke2 {[%emt 0:00:01]} Rd5 {[%emt 0:00:01]} 59. a4 {[%emt 0:00:06]} h4 {[%emt 0:00:02]} 60. Bh2 {[%emt 0:00:01]} Ra5 {[%emt 0:00:05]} 61. Rc1 {[%emt 0:00:03]} Rxa4 {[%emt 0:00:01]} 62. Rd1 {[%emt 0:00:04]} Re4+ {[%emt 0:00:03]} 63. Kf3 {[%emt 0:00:01]} Rd4 {[%emt 0:00:02]} 64. Rf1 {[%emt 0:00:03]} Ke6 {[%emt 0:00:01]} 65. Ke3 {[%emt 0:00:01]} Rd5 {[%emt 0:00:01]} 66. Ke2 {[%emt 0:00:02]} Be5 {[%emt 0:00:02]} 67. Bxe5 {[%emt 0:00:02]} Rxe5+ {[%emt 0:00:01]} 68. Kd3 {[%emt 0:00:01]} Kxd6 {[%emt 0:00:02]} 69. Kxc3 {[%emt 0:00:01]} h3 {[%emt 0:00:02]} 70. Rh1 {[%emt 0:00:02]} Rh5 {[%emt 0:00:02]} 71. Rh2 {[%emt 0:00:03]} Kc5 {[%emt 0:00:01] Kd4+} 0-1

[Event "RUS-ch Women Blitz 2019"]
[Site "Sochi"]
[Date "2019.10.17"]
[Round "3.6"]
[White "Vifleemskaia, Svetlana"]
[Black "Styazhkina, Anna"]
[Result "1/2-1/2"]
[ECO "D10"]
[WhiteElo "1978"]
[BlackElo "2280"]
[Annotator "NA"]
[PlyCount "98"]
[EventDate "2019.10.17"]
[EventType "swiss"]
[EventCountry "RUS"]
[SourceTitle "playchess.com"]
[Source "ChessBase"]
[SourceQuality "1"]
[TimeControl "180+2"]

1. d4 {[%emt 0:00:00]} d5 {[%emt 0:00:00]} 2. c4 {[%emt 0:00:00]} c6 {[%emt 0:00:00]} 3. cxd5 {[%emt 0:00:01]} cxd5 {[%emt 0:00:02]} 4. Bf4 {[%emt 0:00:02]} Nf6 {[%emt 0:00:02]} 5. e3 {[%emt 0:00:01]} Nc6 {[%emt 0:00:02]} 6. Nc3 {[%emt 0:00:01]} a6 {[%emt 0:00:07]} 7. Rc1 {[%emt 0:00:03]} h6 {[%emt 0:01:01]} 8. Bd3 {[%emt 0:00:08]} Bg4 {[%emt 0:00:14]} 9. Nge2 {[%emt 0:00:08]} Bxe2 {[%emt 0:00:06]} 10. Qxe2 {[%emt 0:00:06]} e6 {[%emt 0:00:01]} 11. O-O {[%emt 0:00:07]} Be7 {[%emt 0:00:01]} 12. a3 {[%emt 0:00:06]} O-O {[%emt 0:00:04]} 13. b4 {[%emt 0:00:02]} Rc8 {[%emt 0:00:04]} 14. Na4 {[%emt 0:00:07]} Nd7 {[%emt 0:00:08]} 15. Nc5 {[%emt 0:00:12]} Bxc5 {[%emt 0:00:23]} 16. bxc5 {[%emt 0:00:07]} e5 {[%emt 0:00:01]} 17. dxe5 {[%emt 0:00:50]} Ndxe5 {[%emt 0:00:02]} 18. Bf5 {[%emt 0:00:18]} Ra8 {[%emt 0:00:01]} 19. Rfd1 {[%emt 0:00:16]} Qf6 {[%emt 0:00:03]} 20. Bb1 {[%emt 0:00:29]} Rfd8 {[%emt 0:00:04]} 21. h3 {[%emt 0:00:10]} Rac8 {[%emt 0:00:11]} 22. Qc2 {[%emt 0:00:09]} Ng6 {[%emt 0:00:02]} 23. Bd6 {[%emt 0:00:03]} d4 {[%emt 0:00:19]} 24. Qb2 {[%emt 0:00:03]} Na5 {[%emt 0:00:35]} 25. Qxd4 {[%emt 0:00:06]} Nb3 {[%emt 0:00:04]} 26. Qxf6 {[%emt 0:00:02]} gxf6 {[%emt 0:00:01]} 27. Rc3 {[%emt 0:00:06]} Nxc5 {[%emt 0:00:03]} 28. Rdc1 {[%emt 0:00:08]} Rxd6 {[%emt 0:00:01]} 29. Bxg6 {[%emt 0:00:04]} fxg6 {[%emt 0:00:04]} 30. Rxc5 {[%emt 0:00:01]} Rxc5 {[%emt 0:00:04]} 31. Rxc5 {[%emt 0:00:00]} Rd3 {[%emt 0:00:07]} 32. Rc7 {[%emt 0:00:02]} b5 {[%emt 0:00:02]} 33. Rc6 {[%emt 0:00:03]} Rxa3 {[%emt 0:00:03]} 34. Rxf6 {[%emt 0:00:00]} Kg7 {[%emt 0:00:00]} 35. Rb6 {[%emt 0:00:01]} Ra4 {[%emt 0:00:03]} 36. f4 {[%emt 0:00:03]} b4 {[%emt 0:00:02]} 37. Kf2 {[%emt 0:00:01]} a5 {[%emt 0:00:01]} 38. e4 {[%emt 0:00:00]} Ra2+ {[%emt 0:00:01]} 39. Kf3 {[%emt 0:00:02]} Ra3+ {[%emt 0:00:04]} 40. Kg4 {[%emt 0:00:01]} h5+ {[%emt 0:00:03]} 41. Kh4 {[%emt 0:00:02]} Re3 {[%emt 0:00:02]} 42. e5 {[%emt 0:00:02]} b3 {[%emt 0:00:01]} 43. Rb7+ {[%emt 0:00:01]} Kh6 {[%emt 0:00:02]} 44. Rb6 {[%emt 0:00:05]} Re4 {[%emt 0:00:01]} 45. Rxb3 {[%emt 0:00:03]} Rxf4+ {[%emt 0:00:02]} 46. Kg3 {[%emt 0:00:01]} Re4 {[%emt 0:00:02]} 47. Rb5 {[%emt 0:00:01]} a4 {[%emt 0:00:01]} 48. Ra5 {[%emt 0:00:00]} a3 {[%emt 0:00:02]} 49. Rxa3 {[%emt 0:00:01]} Rxe5 1/2-1/2

[Event "RUS-ch Women Blitz 2019"]
[Site "Sochi"]
[Date "2019.10.20"]
[Round "3.6"]
[White "Absalyamova, Karina"]
[Black "Girya, Olga"]
[Result "1/2-1/2"]
[ECO "D14"]
[WhiteElo "1945"]
[BlackElo "2330"]
[Annotator "NA"]
[PlyCount "63"]
[EventDate "2019.10.17"]
[EventType "swiss"]
[EventCountry "RUS"]
[SourceTitle "playchess.com"]
[Source "ChessBase"]
[SourceQuality "1"]
[TimeControl "180+2"]

1. c4 {[%emt 0:00:00]} c6 {[%emt 0:00:00]} 2. Nc3 {[%emt 0:00:00]} d5 {[%emt 0:00:01]} 3. cxd5 {[%emt 0:00:01]} cxd5 4. d4 Nf6 {[%emt 0:00:04]} 5. Nf3 {[%emt 0:00:01]} Nc6 {[%emt 0:00:01]} 6. Bf4 {[%emt 0:00:02]} Bf5 {[%emt 0:00:01]} 7. e3 {[%emt 0:00:02]} e6 {[%emt 0:00:01]} 8. a3 {[%emt 0:00:00]} Bd6 {[%emt 0:00:51]} 9. Bxd6 Qxd6 {[%emt 0:00:01]} 10. Bd3 {[%emt 0:00:12]} O-O {[%emt 0:00:07]} 11. O-O {[%emt 0:00:01]} Rac8 {[%emt 0:00:05]} 12. Rc1 {[%emt 0:00:01]} a6 {[%emt 0:00:12]} 13. Na4 {[%emt 0:00:06]} Bxd3 14. Qxd3 {[%emt 0:00:02]} Ne4 {[%emt 0:00:08]} 15. Nc5 {[%emt 0:00:03]} Nxc5 {[%emt 0:00:20]} 16. dxc5 {[%emt 0:00:01]} Qe7 {[%emt 0:00:06]} 17. b4 {[%emt 0:00:02]} Rfd8 {[%emt 0:00:06]} 18. Nd4 {[%emt 0:00:08]} Ne5 {[%emt 0:00:12]} 19. Qe2 {[%emt 0:00:08]} g6 {[%emt 0:00:03]} 20. Rfd1 {[%emt 0:00:01]} Nc6 {[%emt 0:00:23]} 21. Nxc6 {[%emt 0:00:07]} Rxc6 {[%emt 0:00:02]} 22. Rd2 {[%emt 0:00:05]} Qc7 {[%emt 0:00:11]} 23. Rcd1 {[%emt 0:00:22]} Rc8 {[%emt 0:00:10]} 24. e4 {[%emt 0:00:04]} b6 {[%emt 0:00:30]} 25. cxb6 {[%emt 0:00:05]} Qxb6 {[%emt 0:00:04]} 26. exd5 {[%emt 0:00:03]} exd5 {[%emt 0:00:01]} 27. Rxd5 {[%emt 0:00:03]} Rc2 {[%emt 0:00:01]} 28. Qf3 {[%emt 0:00:56]} R2c3 {[%emt 0:00:02]} 29. Qg4 {[%emt 0:00:05]} Rc2 {[%emt 0:00:04]} 30. Qf3 {[%emt 0:00:05]} R2c3 {[%emt 0:00:01]} 31. Qg4 {[%emt 0:00:07]} Rc2 {[%emt 0:00:01]} 32. Qf3 {[%emt 0:00:06]} 1/2-1/2